[Event "Titled Tuesday Blitz January 03 Late 2023"]
[White "Sreyas Payyappat"]
[Black "Ilkhomi, Jaloliddin"]
[WhiteFideId "46674969"]
[BlackFideId "14700948"]
[WhiteElo "2076"]
[BlackElo "1997"]
[Result "1-0"]
[Round "04"]
[TimeControl "180+2"]
[Date "2023.01.03"]
[WhiteClock "0:01:48"]
[BlackClock "0:00:23"]

1. e4 {[%clk 0:03:00]}  e6 {[%clk 0:02:59]} 2. Nf3 {[%clk 0:03:01]}  d5 {[%clk 0:02:59]} 3. exd5 {[%clk 0:03:02]}  exd5 {[%clk 0:03:00]} 4. d4 {[%clk 0:03:03]}  Bd6 {[%clk 0:03:00]} 5. Nc3 {[%clk 0:03:03]}  Ne7 {[%clk 0:03:01]} 6. Bd3 {[%clk 0:03:03]}  O-O {[%clk 0:03:01]} 7. O-O {[%clk 0:03:03]}  Nbc6 {[%clk 0:03:01]} 8. Bg5 {[%clk 0:03:03]}  f6 {[%clk 0:03:01]} 9. Bh4 {[%clk 0:03:03]}  Bf5 {[%clk 0:03:02]} 10. Nxd5 {[%clk 0:02:57]}  Bxh2+ {[%clk 0:02:43]} 11. Kxh2 {[%clk 0:02:53]}  Qxd5 {[%clk 0:02:43]} 12. Qe2 {[%clk 0:02:48]}  Nxd4 {[%clk 0:02:28]} 13. Qxe7 {[%clk 0:02:31]}  Bxd3 {[%clk 0:02:14]} 14. cxd3 {[%clk 0:02:24]}  Rfe8 {[%clk 0:01:54]} 15. Qxc7 {[%clk 0:02:19]}  Nxf3+ {[%clk 0:01:45]} 16. gxf3 {[%clk 0:02:15]}  Re5 {[%clk 0:01:29]} 17. Rg1 {[%clk 0:02:11]}  g6 {[%clk 0:01:10]} 18. Bxf6 {[%clk 0:01:52]}  Rh5+ {[%clk 0:00:50]} 19. Kg2 {[%clk 0:01:47]}  Qf7 {[%clk 0:00:42]} 20. Qxf7+ {[%clk 0:01:45]}  Kxf7 {[%clk 0:00:43]} 21. Bd4 {[%clk 0:01:44]}  Rd8 {[%clk 0:00:42]} 22. Be3 {[%clk 0:01:45]}  Rxd3 {[%clk 0:00:42]} 23. Rgd1 {[%clk 0:01:45]}  Rhd5 {[%clk 0:00:40]} 24. Rxd3 {[%clk 0:01:45]}  Rxd3 {[%clk 0:00:40]} 25. Kf1 {[%clk 0:01:45]}  a6 {[%clk 0:00:40]} 26. Ke2 {[%clk 0:01:46]}  Rd6 {[%clk 0:00:41]} 27. Rh1 {[%clk 0:01:47]}  h5 {[%clk 0:00:41]} 28. Rd1 {[%clk 0:01:47]}  Rc6 {[%clk 0:00:41]} 29. Rd7+ {[%clk 0:01:46]}  Ke6 {[%clk 0:00:41]} 30. Rxb7 {[%clk 0:01:47]}  Kf5 {[%clk 0:00:40]} 31. Rb6 {[%clk 0:01:48]}  Rc2+ {[%clk 0:00:39]} 32. Kf1 {[%clk 0:01:47]}  h4 {[%clk 0:00:38]} 33. Rxa6 {[%clk 0:01:46]}  Rxb2 {[%clk 0:00:38]} 34. Kg2 {[%clk 0:01:47]}  g5 {[%clk 0:00:36]} 35. Kh3 {[%clk 0:01:48]}  Rb1 {[%clk 0:00:33]} 36. Ra5+ {[%clk 0:01:47]}  Kf6 {[%clk 0:00:31]} 37. Bxg5+ {[%clk 0:01:47]}  Kg6 {[%clk 0:00:30]} 38. Bxh4 {[%clk 0:01:47]}  Rh1+ {[%clk 0:00:29]} 39. Kg4 {[%clk 0:01:47]}  Rg1+ {[%clk 0:00:29]} 40. Bg3 {[%clk 0:01:48]}  Ra1 {[%clk 0:00:29]} 41. Ra6+ {[%clk 0:01:49]}  Kf7 {[%clk 0:00:28]} 42. f4 {[%clk 0:01:50]}  Rxa2 {[%clk 0:00:28]} 43. Rxa2 {[%clk 0:01:49]}  Kg6 {[%clk 0:00:19]} 44. Ra6+ {[%clk 0:01:46]}  Kh7 {[%clk 0:00:20]} 45. Kg5 {[%clk 0:01:47]}  Kg8 {[%clk 0:00:21]} 46. Ra7 {[%clk 0:01:47]}  Kf8 {[%clk 0:00:22]} 47. Kf6 {[%clk 0:01:47]}  Ke8 {[%clk 0:00:22]} 48. f5 {[%clk 0:01:48]}  Kf8 {[%clk 0:00:23]} 49. Ra8# {[%clk 0:01:48]} 1-0


[Site "https://www.chess.com"]

[Event "Titled Tuesday Blitz January 03 Late 2023"]
[White "Martynov, Pavel"]
[Black "Jarocka, Liwia"]
[WhiteFideId "4101260"]
[BlackFideId "21807558"]
[WhiteElo "2414"]
[BlackElo "2225"]
[Result "1-0"]
[Round "04"]
[TimeControl "180+2"]
[Date "2023.01.03"]
[WhiteClock "0:01:49"]
[BlackClock "0:01:20"]

1. e4 {[%clk 0:03:00]}  c5 {[%clk 0:02:59]} 2. Nf3 {[%clk 0:03:00]}  d6 {[%clk 0:03:00]} 3. Bb5+ {[%clk 0:03:00]}  Bd7 {[%clk 0:02:59]} 4. Bxd7+ {[%clk 0:02:59]}  Qxd7 {[%clk 0:02:59]} 5. O-O {[%clk 0:03:00]}  Nc6 {[%clk 0:02:59]} 6. c3 {[%clk 0:03:00]}  Nf6 {[%clk 0:02:55]} 7. d4 {[%clk 0:03:00]}  Nxe4 {[%clk 0:02:50]} 8. d5 {[%clk 0:03:01]}  Nb8 {[%clk 0:02:48]} 9. Re1 {[%clk 0:03:00]}  Nf6 {[%clk 0:02:48]} 10. Bg5 {[%clk 0:02:58]}  h6 {[%clk 0:02:47]} 11. Bxf6 {[%clk 0:02:57]}  gxf6 {[%clk 0:02:48]} 12. Nbd2 {[%clk 0:02:55]}  Bg7 {[%clk 0:02:46]} 13. Qe2 {[%clk 0:02:43]}  f5 {[%clk 0:02:46]} 14. Nh4 {[%clk 0:02:36]}  Bf6 {[%clk 0:02:46]} 15. Qh5 {[%clk 0:02:35]}  Bg5 {[%clk 0:02:26]} 16. Ndf3 {[%clk 0:02:29]}  Rg8 {[%clk 0:02:26]} 17. Nxg5 {[%clk 0:02:05]}  Rxg5 {[%clk 0:01:41]} 18. Qxh6 {[%clk 0:02:05]}  Rg8 {[%clk 0:01:42]} 19. Qh7 {[%clk 0:02:00]}  Rf8 {[%clk 0:01:39]} 20. Nxf5 {[%clk 0:01:56]}  e5 {[%clk 0:01:26]} 21. dxe6 {[%clk 0:01:51]}  fxe6 {[%clk 0:01:26]} 22. Ng7+ {[%clk 0:01:51]}  Kd8 {[%clk 0:01:20]} 23. Nxe6+ {[%clk 0:01:51]}  Kc8 {[%clk 0:01:20]} 24. Nxf8 {[%clk 0:01:49]} 1-0


[Site "https://www.chess.com"]

[Event "Titled Tuesday Blitz January 03 Late 2023"]
[White "Lacasa Diaz, Jose Antonio"]
[Black "Klose, Eli"]
[WhiteFideId "2203375"]
[BlackFideId "16242955"]
[WhiteElo "2359"]
[BlackElo "1519"]
[Result "0-1"]
[Round "04"]
[TimeControl "180+2"]
[Date "2023.01.03"]
[WhiteClock "0:00:14"]
[BlackClock "0:00:13"]

1. e4 {[%clk 0:03:00]}  e6 {[%clk 0:02:57]} 2. d4 {[%clk 0:03:00]}  d5 {[%clk 0:02:58]} 3. e5 {[%clk 0:03:00]}  c5 {[%clk 0:02:58]} 4. c3 {[%clk 0:03:01]}  Qb6 {[%clk 0:02:56]} 5. Nf3 {[%clk 0:03:01]}  Bd7 {[%clk 0:02:56]} 6. a3 {[%clk 0:02:49]}  Bb5 {[%clk 0:02:48]} 7. c4 {[%clk 0:02:47]}  dxc4 {[%clk 0:02:46]} 8. d5 {[%clk 0:02:47]}  exd5 {[%clk 0:02:46]} 9. Qxd5 {[%clk 0:02:46]}  Ne7 {[%clk 0:02:46]} 10. Qe4 {[%clk 0:02:40]}  Nbc6 {[%clk 0:02:42]} 11. Nc3 {[%clk 0:02:38]}  Ba6 {[%clk 0:02:40]} 12. Bxc4 {[%clk 0:02:31]}  Bxc4 {[%clk 0:02:34]} 13. Qxc4 {[%clk 0:02:31]}  Na5 {[%clk 0:02:22]} 14. Qa4+ {[%clk 0:02:20]}  Nec6 {[%clk 0:02:17]} 15. O-O {[%clk 0:01:56]}  Qb3 {[%clk 0:02:14]} 16. Qe4 {[%clk 0:01:40]}  Qc4 {[%clk 0:02:11]} 17. Rd1 {[%clk 0:01:30]}  Qxe4 {[%clk 0:02:05]} 18. Nxe4 {[%clk 0:01:31]}  Be7 {[%clk 0:02:01]} 19. Bg5 {[%clk 0:01:28]}  Nb3 {[%clk 0:01:54]} 20. Rab1 {[%clk 0:01:16]}  b6 {[%clk 0:01:54]} 21. Bxe7 {[%clk 0:01:11]}  Kxe7 {[%clk 0:01:53]} 22. Nd6 {[%clk 0:00:51]}  g6 {[%clk 0:01:44]} 23. Rd3 {[%clk 0:00:51]}  Nbd4 {[%clk 0:01:43]} 24. Nxd4 {[%clk 0:00:48]}  Nxd4 {[%clk 0:01:44]} 25. b4 {[%clk 0:00:47]}  Rab8 {[%clk 0:01:40]} 26. g3 {[%clk 0:00:41]}  f6 {[%clk 0:01:32]} 27. Nc4 {[%clk 0:00:31]}  fxe5 {[%clk 0:01:21]} 28. Nxe5 {[%clk 0:00:32]}  Ke6 {[%clk 0:01:21]} 29. Nf3 {[%clk 0:00:32]}  Nf5 {[%clk 0:01:04]} 30. Re1+ {[%clk 0:00:30]}  Kf6 {[%clk 0:01:03]} 31. bxc5 {[%clk 0:00:31]}  bxc5 {[%clk 0:01:03]} 32. Ne5 {[%clk 0:00:31]}  Rbc8 {[%clk 0:00:54]} 33. Nd7+ {[%clk 0:00:23]}  Kf7 {[%clk 0:00:49]} 34. g4 {[%clk 0:00:24]}  Nh4 {[%clk 0:00:29]} 35. Ne5+ {[%clk 0:00:21]}  Kf6 {[%clk 0:00:22]} 36. f4 {[%clk 0:00:21]}  Rhd8 {[%clk 0:00:20]} 37. Nd7+ {[%clk 0:00:21]}  Kf7 {[%clk 0:00:20]} 38. Kf2 {[%clk 0:00:21]}  g5 {[%clk 0:00:18]} 39. Kg3 {[%clk 0:00:20]}  c4 {[%clk 0:00:17]} 40. Rd5 {[%clk 0:00:19]}  c3 {[%clk 0:00:15]} 41. fxg5 {[%clk 0:00:18]}  Ng6 {[%clk 0:00:14]} 42. Rf1+ {[%clk 0:00:18]}  Kg7 {[%clk 0:00:13]} 43. Nf6 {[%clk 0:00:15]}  c2 {[%clk 0:00:12]} 44. Rxd8 {[%clk 0:00:13]}  Rxd8 {[%clk 0:00:13]} 45. Rc1 {[%clk 0:00:12]}  Rd2 {[%clk 0:00:13]} 46. Ne4 {[%clk 0:00:11]}  Re2 {[%clk 0:00:11]} 47. h4 {[%clk 0:00:11]}  Ne5 {[%clk 0:00:10]} 48. Nf6 {[%clk 0:00:10]}  Nd3 {[%clk 0:00:10]} 49. Nh5+ {[%clk 0:00:09]}  Kg8 {[%clk 0:00:09]} 50. Rf1 {[%clk 0:00:10]}  c1=Q {[%clk 0:00:08]} 51. Nf6+ {[%clk 0:00:11]}  Kh8 {[%clk 0:00:05]} 52. Rxc1 {[%clk 0:00:11]}  Nxc1 {[%clk 0:00:05]} 53. g6 {[%clk 0:00:11]}  hxg6 {[%clk 0:00:04]} 54. Kf3 {[%clk 0:00:12]}  Ra2 {[%clk 0:00:04]} 55. h5 {[%clk 0:00:12]}  Rxa3+ {[%clk 0:00:05]} 56. Kf4 {[%clk 0:00:12]}  gxh5 {[%clk 0:00:06]} 57. g5 {[%clk 0:00:12]}  a5 {[%clk 0:00:06]} 58. g6 {[%clk 0:00:12]}  Kg7 {[%clk 0:00:06]} 59. Nxh5+ {[%clk 0:00:13]}  Kxg6 {[%clk 0:00:06]} 60. Ng3 {[%clk 0:00:13]}  Kf7 {[%clk 0:00:07]} 61. Ne4 {[%clk 0:00:14]}  Ra4 {[%clk 0:00:07]} 62. Ke5 {[%clk 0:00:15]}  Rxe4+ {[%clk 0:00:07]} 63. Kxe4 {[%clk 0:00:15]}  a4 {[%clk 0:00:08]} 64. Kd4 {[%clk 0:00:16]}  Nb3+ {[%clk 0:00:07]} 65. Kc3 {[%clk 0:00:17]}  Nc5 {[%clk 0:00:08]} 66. Kb2 {[%clk 0:00:17]}  Ke6 {[%clk 0:00:08]} 67. Ka3 {[%clk 0:00:18]}  Kd5 {[%clk 0:00:09]} 68. Kb4 {[%clk 0:00:19]}  Kc6 {[%clk 0:00:09]} 69. Ka3 {[%clk 0:00:19]}  Kb5 {[%clk 0:00:10]} 70. Ka2 {[%clk 0:00:20]}  Kb4 {[%clk 0:00:11]} 71. Kb2 {[%clk 0:00:20]}  a3+ {[%clk 0:00:11]} 72. Ka2 {[%clk 0:00:20]}  Ka4 {[%clk 0:00:10]} 73. Kb1 {[%clk 0:00:20]}  Kb3 {[%clk 0:00:11]} 74. Ka1 {[%clk 0:00:21]}  Na6 {[%clk 0:00:10]} 75. Kb1 {[%clk 0:00:21]}  Nb4 {[%clk 0:00:11]} 76. Ka1 {[%clk 0:00:22]}  Nc2+ {[%clk 0:00:11]} 77. Kb1 {[%clk 0:00:23]}  a2+ {[%clk 0:00:12]} 78. Kc1 {[%clk 0:00:19]}  a1=Q+ {[%clk 0:00:13]} 79. Kd2 {[%clk 0:00:20]}  Qe1+ {[%clk 0:00:12]} 80. Kd3 {[%clk 0:00:14]}  Qe3# {[%clk 0:00:13]} 0-1


[Site "https://www.chess.com"]

[Event "Titled Tuesday Blitz January 03 Late 2023"]
[White "Pino Perez, Lazaro"]
[Black "Cruz Mendez, Jean Marco"]
[WhiteFideId "3517055"]
[BlackFideId "3526402"]
[WhiteElo "2142"]
[BlackElo "2270"]
[Result "1-0"]
[Round "04"]
[TimeControl "180+2"]
[Date "2023.01.03"]
[WhiteClock "0:00:03"]
[BlackClock "0:00:04"]

1. d4 {[%clk 0:03:00]}  Nf6 {[%clk 0:02:59]} 2. Bf4 {[%clk 0:02:59]}  d5 {[%clk 0:02:56]} 3. e3 {[%clk 0:02:59]}  e6 {[%clk 0:02:57]} 4. Nf3 {[%clk 0:02:59]}  Bd6 {[%clk 0:02:57]} 5. Nbd2 {[%clk 0:02:59]}  Bxf4 {[%clk 0:02:54]} 6. exf4 {[%clk 0:03:00]}  O-O {[%clk 0:02:54]} 7. c3 {[%clk 0:02:59]}  Qd6 {[%clk 0:02:54]} 8. g3 {[%clk 0:02:56]}  b6 {[%clk 0:02:54]} 9. h4 {[%clk 0:02:52]}  Ba6 {[%clk 0:02:51]} 10. Bxa6 {[%clk 0:02:51]}  Nxa6 {[%clk 0:02:51]} 11. h5 {[%clk 0:02:51]}  h6 {[%clk 0:02:52]} 12. Ne5 {[%clk 0:02:39]}  c5 {[%clk 0:02:50]} 13. Qe2 {[%clk 0:02:26]}  Nb8 {[%clk 0:02:41]} 14. Ndf3 {[%clk 0:02:23]}  Nc6 {[%clk 0:02:30]} 15. Rd1 {[%clk 0:02:13]}  cxd4 {[%clk 0:02:29]} 16. Nxd4 {[%clk 0:02:14]}  Nxd4 {[%clk 0:02:26]} 17. Rxd4 {[%clk 0:02:15]}  Rac8 {[%clk 0:02:21]} 18. O-O {[%clk 0:02:06]}  Nd7 {[%clk 0:01:57]} 19. Rfd1 {[%clk 0:01:29]}  Nxe5 {[%clk 0:01:54]} 20. fxe5 {[%clk 0:01:30]}  Qe7 {[%clk 0:01:51]} 21. Rg4 {[%clk 0:01:25]}  Rcd8 {[%clk 0:01:01]} 22. Rdd4 {[%clk 0:01:25]}  f5 {[%clk 0:01:01]} 23. Rg6 {[%clk 0:01:13]}  Kh7 {[%clk 0:01:00]} 24. Qe3 {[%clk 0:01:06]}  Rf7 {[%clk 0:00:55]} 25. a4 {[%clk 0:00:59]}  Rdf8 {[%clk 0:00:54]} 26. Rf4 {[%clk 0:00:57]}  Re8 {[%clk 0:00:51]} 27. Qd3 {[%clk 0:00:50]}  Qd7 {[%clk 0:00:48]} 28. g4 {[%clk 0:00:38]}  Ref8 {[%clk 0:00:38]} 29. g5 {[%clk 0:00:37]}  Rg8 {[%clk 0:00:27]} 30. Qg3 {[%clk 0:00:33]}  Qe8 {[%clk 0:00:23]} 31. Kh2 {[%clk 0:00:28]}  a6 {[%clk 0:00:22]} 32. Qh4 {[%clk 0:00:25]}  b5 {[%clk 0:00:21]} 33. axb5 {[%clk 0:00:24]}  axb5 {[%clk 0:00:22]} 34. Rb4 {[%clk 0:00:19]}  Ra7 {[%clk 0:00:20]} 35. Qd4 {[%clk 0:00:13]}  Ra2 {[%clk 0:00:18]} 36. Qb6 {[%clk 0:00:12]}  hxg5 {[%clk 0:00:12]} 37. Rxg5 {[%clk 0:00:11]}  Ra1 {[%clk 0:00:11]} 38. Qxb5 {[%clk 0:00:09]}  Qe7 {[%clk 0:00:12]} 39. f4 {[%clk 0:00:06]}  Qa7 {[%clk 0:00:11]} 40. Qe2 {[%clk 0:00:04]}  Qa2 {[%clk 0:00:10]} 41. Rb7 {[%clk 0:00:02]}  Qb1 {[%clk 0:00:10]} 42. Qg2 {[%clk 0:00:02]}  Qe1 {[%clk 0:00:02]} 43. Rbxg7+ {[%clk 0:00:02]}  Rxg7 {[%clk 0:00:02]} 44. Rxg7+ {[%clk 0:00:03]}  Kh8 {[%clk 0:00:03]} 45. Rg8+ {[%clk 0:00:03]}  Kh7 {[%clk 0:00:04]} 46. Qg7# {[%clk 0:00:03]} 1-0


[Site "https://www.chess.com"]

[Event "Titled Tuesday Blitz January 03 Late 2023"]
[White "Martinez Reyes, Pedro Ramon"]
[Black "Broca Jimenez, Fernando"]
[WhiteFideId "3901807"]
[BlackFideId "5104742"]
[WhiteElo "2376"]
[BlackElo "2075"]
[Result "1-0"]
[Round "04"]
[TimeControl "180+2"]
[Date "2023.01.03"]
[WhiteClock "0:01:46"]
[BlackClock "0:00:02"]

1. e4 {[%clk 0:03:00]}  c5 {[%clk 0:02:59]} 2. Nf3 {[%clk 0:03:00]}  d6 {[%clk 0:02:59]} 3. d4 {[%clk 0:03:01]}  cxd4 {[%clk 0:03:00]} 4. Nxd4 {[%clk 0:03:01]}  Nf6 {[%clk 0:03:00]} 5. Nc3 {[%clk 0:03:01]}  g6 {[%clk 0:03:00]} 6. Be2 {[%clk 0:03:00]}  Bg7 {[%clk 0:03:00]} 7. O-O {[%clk 0:03:01]}  O-O {[%clk 0:03:00]} 8. Nb3 {[%clk 0:03:02]}  Nc6 {[%clk 0:03:00]} 9. Re1 {[%clk 0:03:02]}  Bd7 {[%clk 0:02:45]} 10. Bg5 {[%clk 0:03:02]}  Rc8 {[%clk 0:02:44]} 11. Bf1 {[%clk 0:03:02]}  Na5 {[%clk 0:02:44]} 12. Nd5 {[%clk 0:02:56]}  Nxd5 {[%clk 0:01:58]} 13. exd5 {[%clk 0:02:56]}  Bf6 {[%clk 0:01:57]} 14. Bh6 {[%clk 0:02:54]}  Re8 {[%clk 0:01:57]} 15. c3 {[%clk 0:02:52]}  Nc4 {[%clk 0:01:43]} 16. Qe2 {[%clk 0:02:50]}  Bb5 {[%clk 0:01:29]} 17. Qf3 {[%clk 0:02:46]}  Ne5 {[%clk 0:01:14]} 18. Qg3 {[%clk 0:02:41]}  Bxf1 {[%clk 0:01:13]} 19. Rxf1 {[%clk 0:02:41]}  Qd7 {[%clk 0:01:07]} 20. Nd4 {[%clk 0:02:40]}  Qg4 {[%clk 0:01:03]} 21. Rad1 {[%clk 0:02:17]}  Qxg3 {[%clk 0:00:50]} 22. hxg3 {[%clk 0:02:18]}  a6 {[%clk 0:00:50]} 23. Bc1 {[%clk 0:02:13]}  Nc4 {[%clk 0:00:43]} 24. Rfe1 {[%clk 0:02:11]}  Nb6 {[%clk 0:00:38]} 25. Nb3 {[%clk 0:02:08]}  Nc4 {[%clk 0:00:35]} 26. g4 {[%clk 0:02:06]}  b6 {[%clk 0:00:20]} 27. g5 {[%clk 0:02:06]}  Bg7 {[%clk 0:00:19]} 28. Re4 {[%clk 0:02:07]}  e6 {[%clk 0:00:17]} 29. dxe6 {[%clk 0:01:54]}  Rxe6 {[%clk 0:00:18]} 30. Rde1 {[%clk 0:01:51]}  Rce8 {[%clk 0:00:16]} 31. Rxe6 {[%clk 0:01:52]}  fxe6 {[%clk 0:00:16]} 32. Nd2 {[%clk 0:01:50]}  Nxd2 {[%clk 0:00:13]} 33. Bxd2 {[%clk 0:01:50]}  Kf7 {[%clk 0:00:13]} 34. Kf1 {[%clk 0:01:49]}  d5 {[%clk 0:00:13]} 35. Re3 {[%clk 0:01:49]}  Rf8 {[%clk 0:00:11]} 36. Rh3 {[%clk 0:01:49]}  Rh8 {[%clk 0:00:10]} 37. Ke2 {[%clk 0:01:49]}  Ke7 {[%clk 0:00:10]} 38. Kd3 {[%clk 0:01:49]}  Be5 {[%clk 0:00:09]} 39. Be3 {[%clk 0:01:50]}  b5 {[%clk 0:00:08]} 40. Rh4 {[%clk 0:01:50]}  Kd6 {[%clk 0:00:08]} 41. a4 {[%clk 0:01:50]}  bxa4 {[%clk 0:00:06]} 42. Rxa4 {[%clk 0:01:49]}  Ra8 {[%clk 0:00:06]} 43. c4 {[%clk 0:01:46]}  dxc4+ {[%clk 0:00:03]} 44. Rxc4 {[%clk 0:01:46]}  Bxb2 {[%clk 0:00:02]} 45. Rb4 {[%clk 0:01:46]} 1-0


[Site "https://www.chess.com"]

[Event "Titled Tuesday Blitz January 03 Late 2023"]
[White "Martin Carmona, Gaston Manuel"]
[Black "Wang, Alexander J"]
[WhiteFideId "22284567"]
[BlackFideId "30955270"]
[WhiteElo "2333"]
[BlackElo "1815"]
[Result "1-0"]
[Round "04"]
[TimeControl "180+2"]
[Date "2023.01.03"]
[WhiteClock "0:01:55"]
[BlackClock "0:01:18"]

1. Nf3 {[%clk 0:02:56]}  d5 {[%clk 0:02:59]} 2. g3 {[%clk 0:02:55]}  c5 {[%clk 0:02:58]} 3. Bg2 {[%clk 0:02:55]}  Nc6 {[%clk 0:02:58]} 4. c4 {[%clk 0:02:54]}  d4 {[%clk 0:02:57]} 5. O-O {[%clk 0:02:54]}  Nf6 {[%clk 0:02:57]} 6. e3 {[%clk 0:02:54]}  e5 {[%clk 0:02:51]} 7. exd4 {[%clk 0:02:55]}  exd4 {[%clk 0:02:50]} 8. Re1+ {[%clk 0:02:55]}  Be7 {[%clk 0:02:49]} 9. d3 {[%clk 0:02:55]}  O-O {[%clk 0:02:49]} 10. h3 {[%clk 0:02:54]}  Bd6 {[%clk 0:02:47]} 11. a3 {[%clk 0:02:49]}  a5 {[%clk 0:02:43]} 12. Bg5 {[%clk 0:02:48]}  h6 {[%clk 0:02:43]} 13. Bxf6 {[%clk 0:02:48]}  Qxf6 {[%clk 0:02:43]} 14. Nbd2 {[%clk 0:02:49]}  Bf5 {[%clk 0:02:41]} 15. Ne4 {[%clk 0:02:46]}  Bxe4 {[%clk 0:02:41]} 16. Rxe4 {[%clk 0:02:47]}  Rfe8 {[%clk 0:02:40]} 17. Qe2 {[%clk 0:02:47]}  Rxe4 {[%clk 0:02:32]} 18. Qxe4 {[%clk 0:02:48]}  Qe7 {[%clk 0:02:22]} 19. Qg4 {[%clk 0:02:41]}  Re8 {[%clk 0:02:20]} 20. Re1 {[%clk 0:02:36]}  Qd8 {[%clk 0:02:17]} 21. Re4 {[%clk 0:02:35]}  Rxe4 {[%clk 0:02:12]} 22. Qxe4 {[%clk 0:02:36]}  Qe7 {[%clk 0:02:11]} 23. Qd5 {[%clk 0:02:35]}  Qe6 {[%clk 0:02:08]} 24. Qxe6 {[%clk 0:02:33]}  fxe6 {[%clk 0:02:09]} 25. Nd2 {[%clk 0:02:33]}  Ne5 {[%clk 0:02:04]} 26. Be4 {[%clk 0:02:26]}  b6 {[%clk 0:02:01]} 27. f4 {[%clk 0:02:26]}  Nd7 {[%clk 0:01:59]} 28. Bc6 {[%clk 0:02:25]}  Nf6 {[%clk 0:01:59]} 29. Nf3 {[%clk 0:02:22]}  Kf7 {[%clk 0:01:55]} 30. Kf2 {[%clk 0:02:19]}  Ke7 {[%clk 0:01:54]} 31. Nd2 {[%clk 0:02:14]}  e5 {[%clk 0:01:52]} 32. f5 {[%clk 0:02:14]}  Bc7 {[%clk 0:01:44]} 33. Kf3 {[%clk 0:02:10]}  Kd6 {[%clk 0:01:42]} 34. Ba4 {[%clk 0:02:03]}  Ke7 {[%clk 0:01:41]} 35. g4 {[%clk 0:02:01]}  Kd6 {[%clk 0:01:31]} 36. h4 {[%clk 0:02:00]}  Ke7 {[%clk 0:01:24]} 37. g5 {[%clk 0:02:00]}  hxg5 {[%clk 0:01:24]} 38. hxg5 {[%clk 0:02:01]}  Ne8 {[%clk 0:01:24]} 39. Bxe8 {[%clk 0:01:59]}  Kxe8 {[%clk 0:01:24]} 40. Ke4 {[%clk 0:01:57]}  Bd8 {[%clk 0:01:23]} 41. Nf3 {[%clk 0:01:56]}  Ke7 {[%clk 0:01:18]} 42. Kxe5 {[%clk 0:01:55]} 1-0


[Site "https://www.chess.com"]

[Event "Titled Tuesday Blitz January 03 Late 2023"]
[White "Avila Pavas, Santiago"]
[Black "Mazurkiewicz, Michal"]
[WhiteFideId "4437128"]
[BlackFideId "1124943"]
[WhiteElo "2522"]
[BlackElo "2145"]
[Result "1-0"]
[Round "04"]
[TimeControl "180+2"]
[Date "2023.01.03"]
[WhiteClock "0:00:39"]
[BlackClock "0:00:03"]

1. d4 {[%clk 0:03:00]}  Nf6 {[%clk 0:02:59]} 2. Nf3 {[%clk 0:03:01]}  g6 {[%clk 0:02:59]} 3. Bg5 {[%clk 0:03:01]}  Bg7 {[%clk 0:03:00]} 4. Nbd2 {[%clk 0:03:02]}  d5 {[%clk 0:03:00]} 5. e3 {[%clk 0:03:02]}  O-O {[%clk 0:03:00]} 6. Be2 {[%clk 0:03:03]}  c6 {[%clk 0:03:00]} 7. O-O {[%clk 0:03:04]}  Qb6 {[%clk 0:03:00]} 8. Rb1 {[%clk 0:03:03]}  Nbd7 {[%clk 0:02:59]} 9. b4 {[%clk 0:03:03]}  Re8 {[%clk 0:02:58]} 10. b5 {[%clk 0:02:56]}  c5 {[%clk 0:02:52]} 11. c4 {[%clk 0:02:53]}  cxd4 {[%clk 0:02:29]} 12. exd4 {[%clk 0:02:53]}  Ne4 {[%clk 0:02:30]} 13. Nxe4 {[%clk 0:02:31]}  dxe4 {[%clk 0:02:29]} 14. c5 {[%clk 0:02:32]}  Qe6 {[%clk 0:01:47]} 15. Ne1 {[%clk 0:01:55]}  Qxa2 {[%clk 0:01:42]} 16. Nc2 {[%clk 0:01:55]}  e5 {[%clk 0:01:26]} 17. Nb4 {[%clk 0:01:42]}  Qa5 {[%clk 0:00:40]} 18. c6 {[%clk 0:01:41]}  exd4 {[%clk 0:00:27]} 19. cxd7 {[%clk 0:01:38]}  Bxd7 {[%clk 0:00:28]} 20. Bc4 {[%clk 0:01:05]}  Bxb5 {[%clk 0:00:20]} 21. Bxb5 {[%clk 0:01:02]}  Qxb5 {[%clk 0:00:20]} 22. Nc2 {[%clk 0:01:03]}  Qd5 {[%clk 0:00:17]} 23. Bh4 {[%clk 0:00:59]}  Rac8 {[%clk 0:00:16]} 24. Nb4 {[%clk 0:00:56]}  Qc4 {[%clk 0:00:16]} 25. Qa4 {[%clk 0:00:55]}  d3 {[%clk 0:00:13]} 26. Qxa7 {[%clk 0:00:54]}  d2 {[%clk 0:00:13]} 27. Qxb7 {[%clk 0:00:53]}  Qd4 {[%clk 0:00:12]} 28. Qd5 {[%clk 0:00:52]}  e3 {[%clk 0:00:11]} 29. fxe3 {[%clk 0:00:49]}  Qxe3+ {[%clk 0:00:10]} 30. Bf2 {[%clk 0:00:48]}  Qe2 {[%clk 0:00:06]} 31. Qd3 {[%clk 0:00:43]}  Qxd3 {[%clk 0:00:05]} 32. Nxd3 {[%clk 0:00:44]}  Red8 {[%clk 0:00:05]} 33. Nc5 {[%clk 0:00:39]}  Bd4 {[%clk 0:00:02]} 34. Bxd4 {[%clk 0:00:39]}  Rxd4 {[%clk 0:00:03]} 35. Nb3 {[%clk 0:00:38]}  Rd3 {[%clk 0:00:03]} 36. Rfd1 {[%clk 0:00:39]} 1-0


[Site "https://www.chess.com"]

[Event "Titled Tuesday Blitz January 03 Late 2023"]
[White "Erdogdu, Mert"]
[Black "Hansen, Torbjorn Ringdal"]
[WhiteFideId "6301495"]
[BlackFideId "1501720"]
[WhiteElo "2413"]
[BlackElo "2432"]
[Result "0-1"]
[Round "04"]
[TimeControl "180+2"]
[Date "2023.01.03"]
[WhiteClock "0:00:01"]
[BlackClock "0:00:19"]

1. e4 {[%clk 0:03:00]}  c6 {[%clk 0:02:59]} 2. d4 {[%clk 0:03:00]}  d5 {[%clk 0:03:00]} 3. exd5 {[%clk 0:03:00]}  cxd5 {[%clk 0:03:00]} 4. c4 {[%clk 0:03:01]}  Nf6 {[%clk 0:02:59]} 5. Nc3 {[%clk 0:03:01]}  Nc6 {[%clk 0:02:58]} 6. Bg5 {[%clk 0:03:01]}  Ne4 {[%clk 0:02:54]} 7. cxd5 {[%clk 0:02:59]}  Nxc3 {[%clk 0:02:47]} 8. bxc3 {[%clk 0:02:59]}  Qxd5 {[%clk 0:02:47]} 9. Nf3 {[%clk 0:03:00]}  e5 {[%clk 0:02:32]} 10. dxe5 {[%clk 0:02:47]}  Qxd1+ {[%clk 0:02:30]} 11. Rxd1 {[%clk 0:02:46]}  Be6 {[%clk 0:02:19]} 12. Bb5 {[%clk 0:02:22]}  Be7 {[%clk 0:02:08]} 13. Bxe7 {[%clk 0:02:16]}  Kxe7 {[%clk 0:02:09]} 14. Bxc6 {[%clk 0:02:02]}  bxc6 {[%clk 0:02:10]} 15. Nd4 {[%clk 0:02:02]}  Bxa2 {[%clk 0:01:59]} 16. Nxc6+ {[%clk 0:02:01]}  Ke6 {[%clk 0:01:56]} 17. Rd6+ {[%clk 0:02:00]}  Kf5 {[%clk 0:01:57]} 18. O-O {[%clk 0:01:50]}  Be6 {[%clk 0:01:53]} 19. f4 {[%clk 0:01:45]}  a5 {[%clk 0:01:37]} 20. Nd4+ {[%clk 0:01:18]}  Ke4 {[%clk 0:01:37]} 21. g3 {[%clk 0:01:15]}  Bh3 {[%clk 0:01:20]} 22. Re1+ {[%clk 0:01:10]}  Kd3 {[%clk 0:01:20]} 23. Ne2+ {[%clk 0:00:27]}  Kc4 {[%clk 0:01:17]} 24. Red1 {[%clk 0:00:20]}  Rhc8 {[%clk 0:01:06]} 25. Rb6 {[%clk 0:00:16]}  a4 {[%clk 0:01:03]} 26. Rb4+ {[%clk 0:00:12]}  Kc5 {[%clk 0:01:03]} 27. Ra1 {[%clk 0:00:11]}  a3 {[%clk 0:01:01]} 28. Nd4 {[%clk 0:00:11]}  Kd5 {[%clk 0:00:53]} 29. Rb3 {[%clk 0:00:10]}  Rcb8 {[%clk 0:00:53]} 30. Raxa3 {[%clk 0:00:09]}  Rxa3 {[%clk 0:00:51]} 31. Rxa3 {[%clk 0:00:10]}  Ke4 {[%clk 0:00:42]} 32. Kf2 {[%clk 0:00:09]}  Rb2+ {[%clk 0:00:42]} 33. Ke1 {[%clk 0:00:07]}  Ke3 {[%clk 0:00:37]} 34. Kd1 {[%clk 0:00:06]}  Rxh2 {[%clk 0:00:33]} 35. Nc2+ {[%clk 0:00:04]}  Kd3 {[%clk 0:00:28]} 36. Ne1+ {[%clk 0:00:04]}  Kc4 {[%clk 0:00:22]} 37. Ra7 {[%clk 0:00:03]}  Be6 {[%clk 0:00:21]} 38. Rc7+ {[%clk 0:00:02]}  Kd5 {[%clk 0:00:20]} 39. Nd3 {[%clk 0:00:02]}  h5 {[%clk 0:00:19]} 40. Nb4+ {[%clk 0:00:02]}  Ke4 {[%clk 0:00:19]} 41. Kc1 {[%clk 0:00:02]}  Ke3 {[%clk 0:00:19]} 42. Rc6 {[%clk 0:00:01]}  Kf3 {[%clk 0:00:19]} 0-1


[Site "https://www.chess.com"]